bitfinex-derivatives/quotes_ETHF0:USTF0_20210109
["timestamp","ask_amount","ask_price","bid_price","bid_amount"]
[1610233562311,46.1774,1283.2,1282.2,4.00959]
[1610233562511,46.1774,1283.2,1282.2,6.46309]
[1610233564214,46.1774,1283.2,1282.9,4.00959]
[1610233564414,46.1774,1283.2,1282.9,5.80509]
[1610233566217,46.1774,1283.2,1283.1,4.00959]
[1610233566619,5.7814,1283.6,1283.1,4.00959]
[1610233567418,5.7814,1283.6,1282.9,1.7955]
[1610233568321,4.00959,1283.4,1282.9,5.80509]
[1610233568521,4.00959,1283.4,1282.9,1.7955]
[1610233569519,4.00959,1283.4,1282.7,64.7216]
[1610233572327,4.00959,1283.4,1283.0,4.00959]
[1610233572528,4.00959,1283.4,1283.0,1.593]
[1610233573629,34.00959,1283.4,1283.0,1.593]
[1610233574633,30.0,1283.4,1283.0,1.593]
[1610233574832,5.7814,1283.6,1283.0,1.593]
[1610233575432,35.7814,1283.6,1283.0,1.593]
[1610233576234,4.00959,1283.2,1283.0,1.593]
[1610233576434,34.00959,1283.2,1283.0,1.593]
[1610233576633,34.00959,1283.2,1282.7,64.7216]
[1610233577034,30.0,1283.2,1282.7,64.7216]
[1610233577334,30.0,1283.5,1282.7,64.7216]
[1610233580335,4.00959,1282.8,1282.7,64.7216]
[1610233580536,34.00959,1282.8,1282.7,61.3166]
[1610233581745,4.00959,1282.8,1282.7,61.3166]
[1610233583247,30.0,1283.3,1282.7,61.3166]
[1610233584249,30.0,1283.5,1282.7,61.3166]
[1610233584849,87.7733,1284.3,1282.7,61.3166]
[1610233585049,5.7333,1284.2,1282.7,64.7216]
[1610233585449,30.0,1284.1,1282.7,3.405]
[1610233585949,32.0046,1284.8,1282.7,3.405]
[1610233586352,4.00959,1284.4,1284.1,4.00959]
[1610233586551,1.9016,1285.1,1284.1,4.00959]
[1610233586749,1.9016,1285.1,1284.1,5.62979]
[1610233588349,1.9016,1285.1,1284.9,4.00959]
[1610233588751,1.9016,1285.1,1284.1,1.6202]
[1610233590352,1.9016,1285.1,1284.9,4.00959]
[1610233590554,1.9016,1285.1,1284.1,1.6202]
[1610233591557,4.00959,1285.2,1284.1,1.6202]
[1610233591959,4.00959,1285.2,1284.1,2.4686]
[1610233592360,4.00959,1285.2,1284.8,4.00959]
[1610233593364,1.9949,1285.4,1284.8,4.00959]
[1610233593564,11.9504,1285.9,1284.8,4.00959]
[1610233594464,11.9504,1285.9,1285.8,4.00959]
[1610233594664,5.983,1285.9,1285.8,4.00959]
[1610233599674,7.8484,1285.9,1285.8,4.00959]
[1610233602277,1.8654,1285.9,1285.8,4.00959]
[1610233602479,14.0,1286.0,1285.8,4.00959]
[1610233625000,15.5765,1286.0,1285.8,4.00959]
[1610233636312,14.0,1286.0,1285.8,4.00959]
[1610233637314,15.5382,1286.0,1285.8,4.00959]
[1610233637613,14.0,1286.0,1285.8,4.00959]
[1610233638616,15.5436,1286.0,1285.8,4.00959]
[1610233639114,14.0,1286.0,1285.8,4.00959]
[1610233642320,15.5492,1286.0,1285.8,4.00959]
[1610233642719,14.0,1286.0,1285.8,4.00959]
[1610233644921,15.5362,1286.0,1285.8,4.00959]
[1610233646020,14.0,1286.0,1285.8,4.00959]
[1610233647024,15.5421,1286.0,1285.8,4.00959]
[1610233647626,14.0,1286.0,1285.8,4.00959]
[1610233651128,14.0,1286.0,1285.9,53.0764]
[1610233651328,14.0,1286.0,1285.9,54.8751]
[1610233660534,14.0,1286.0,1285.9,1.7987]
[1610233660933,14.0,1286.0,1285.8,4.00959]
[1610233711197,14.0,1286.0,1285.6,6.23829]
[1610233713100,4.00959,1285.7,1285.6,6.23829]
[1610233713500,14.0,1286.0,1285.6,6.23829]
[1610233714399,30.0,1285.9,1285.6,6.23829]
[1610233714601,30.0,1285.9,1285.6,2.2287]
[1610233714800,30.0,1285.9,1285.4,44.8378]
[1610233715200,4.00959,1285.5,1285.4,44.8378]
[1610233715401,34.00959,1285.5,1285.4,44.8378]
[1610233716501,4.00959,1285.5,1285.4,44.8378]
[1610233716902,43.11409,1285.5,1285.1,2.3548]
[1610233717102,4.00959,1285.2,1284.8,2.2618]
[1610233717301,9.1045,1285.5,1284.6,56.9733]
[1610233717502,9.1045,1285.5,1284.6,58.805]
[1610233719102,9.1045,1285.5,1285.4,4.00959]
[1610233719302,9.1045,1285.5,1284.6,58.805]
[1610233723108,9.1045,1285.5,1285.1,4.00959]
[1610233723507,9.1045,1285.5,1285.1,5.66839]
[1610233725811,9.1045,1285.5,1285.1,1.6588]
[1610233726409,4.00959,1285.7,1285.1,1.6588]
[1610233728613,4.00959,1285.7,1285.0,4.00959]
[1610233729214,4.00959,1285.5,1285.4,4.00959]
[1610233729615,4.00959,1285.5,1284.6,1.8317]
[1610233729915,4.00959,1285.5,1283.9,20.401]
[1610233731216,4.00959,1285.5,1284.8,4.00959]
[1610233731417,4.00959,1285.5,1284.8,5.82999]
[1610233733120,4.00959,1285.5,1285.2,4.00959]
[1610233733522,4.00959,1285.5,1285.2,6.17869]
[1610233734523,4.00959,1285.5,1285.2,2.1691]
[1610233737224,44.0,1286.0,1285.2,2.1691]
[1610233738630,44.0,1286.0,1285.0,45.8398]
[1610233739129,4.00959,1285.5,1285.3,4.00959]
[1610233739329,14.0,1286.0,1285.3,4.00959]
[1610233739528,14.0,1286.0,1285.3,6.32809]
[1610233740030,30.0,1285.9,1285.3,6.32809]
[1610233741133,4.00959,1285.7,1285.3,6.32809]
[1610233742431,4.00959,1285.7,1285.3,2.3185]
[1610233743132,34.00959,1285.7,1285.4,4.00959]
[1610233743333,34.00959,1285.7,1285.3,2.3185]
[1610233744534,34.00959,1285.7,1285.0,45.8398]
[1610233745036,34.00959,1285.7,1285.2,44.7183]
[1610233745238,34.00959,1285.7,1285.2,48.72789]
[1610233745438,34.00959,1285.7,1285.2,51.09909]
[1610233746638,4.00959,1285.7,1285.2,51.09909]
[1610233747137,34.00959,1285.7,1285.2,51.09909]
[1610233749142,30.0,1285.7,1285.2,51.09909]
[1610233749341,30.0,1285.6,1285.2,51.09909]
[1610233749841,30.0,1285.6,1285.2,47.0895]
[1610233750342,30.0,1285.5,1285.2,47.0895]
[1610233751144,4.00959,1285.3,1285.2,47.0895]
[1610233751846,34.00959,1285.3,1285.2,47.0895]
[1610233753446,4.00959,1285.3,1285.2,47.0895]
[1610233754248,34.00959,1285.3,1285.2,47.0895]
[1610233754447,34.00959,1285.3,1285.2,2.3712]
[1610233754647,34.00959,1285.3,1284.8,5.82999]
[1610233754847,52.3615,1285.8,1284.8,5.82999]
[1610233755248,52.3615,1285.8,1285.7,4.00959]
[1610233755449,52.3615,1285.8,1285.7,6.07459]
[1610233756449,14.0,1286.0,1285.7,6.07459]
[1610233757252,14.0,1286.0,1285.9,4.00959]
[1610233763560,14.0,1286.0,1285.7,2.065]
[1610233763759,14.0,1286.0,1284.8,5.2254]
[1610233764159,44.0,1286.0,1284.8,5.2254]
[1610233764361,44.0,1286.0,1284.8,1.8204]
[1610233764559,44.0,1286.0,1284.0,3.405]
[1610233765358,48.00959,1286.0,1285.5,4.00959]
[1610233765759,48.00959,1286.0,1285.5,5.93399]
[1610233766660,18.00959,1286.0,1285.5,5.93399]
[1610233767264,18.00959,1286.0,1285.7,4.00959]
[1610233769264,48.00959,1286.0,1285.9,4.00959]
[1610233770263,48.00959,1286.0,1285.5,1.9244]
[1610233770863,48.00959,1286.0,1284.0,3.405]
[1610233771363,4.00959,1285.8,1285.5,4.00959]
[1610233771563,30.0,1285.7,1284.0,3.405]
[1610233773166,30.0,1285.7,1285.0,107.6393]
[1610233773364,4.00959,1285.6,1285.2,4.00959]
[1610233773564,34.00959,1285.6,1285.2,4.00959]
[1610233777269,30.0,1285.6,1285.2,4.00959]
[1610233777471,30.0,1285.9,1285.2,4.00959]
[1610233777672,30.0,1285.5,1285.2,4.00959]
[1610233778471,30.0,1285.5,1285.0,2.0898]
[1610233778671,30.0,1285.4,1284.0,3.405]
[1610233779275,4.00959,1285.1,1284.7,4.00959]
[1610233779476,30.0,1285.0,1284.7,4.00959]
[1610233781381,4.00959,1284.9,1284.7,4.00959]
[1610233781581,34.00959,1284.9,1284.7,4.00959]
[1610233782582,30.0,1284.9,1284.7,4.00959]
[1610233785286,30.0,1284.9,1284.0,3.405]
[1610233785485,30.0,1284.8,1283.9,16.996]
[1610233785885,30.0,1284.8,1284.7,4.00959]
[1610233793598,30.0,1284.8,1284.6,2.5362]
[1610233793798,30.0,1284.8,1284.7,4.00959]
[1610233794899,30.0,1284.8,1284.6,2.5362]
[1610233795099,30.0,1284.8,1283.9,3.405]
[1610233795299,30.0,1284.8,1282.8,14.45781707]
[1610233795900,4.00959,1284.6,1284.0,4.00959]
[1610233796100,30.0,1284.5,1284.0,4.00959]
[1610233797001,30.0,1284.5,1282.8,10.216]
[1610233797801,4.00959,1284.1,1283.4,4.00959]
[1610233798000,30.0,1284.0,1283.4,4.00959]
[1610233799202,30.0,1284.0,1283.8,63.2664]
[1610233799805,4.00959,1283.9,1283.8,63.2664]
[1610233800005,34.00959,1283.9,1283.8,63.2664]
[1610233801406,34.00959,1283.9,1283.5,1.5721]
[1610233801807,4.00959,1283.6,1283.5,1.5721]
[1610233802008,34.00959,1283.6,1283.5,1.5721]
[1610233802710,30.0,1283.6,1283.5,1.5721]
[1610233802910,51.5992,1284.2,1283.5,1.5721]
[1610233803909,51.5992,1284.2,1284.1,4.00959]
[1610233804110,51.5992,1284.2,1284.1,5.58959]
[1610233807712,81.5992,1284.2,1284.1,5.58959]
[1610233808914,81.5992,1284.2,1284.1,1.58]
[1610233809113,81.5992,1284.2,1284.1,2.2946]
[1610233809815,85.60879,1284.2,1284.1,2.2946]
[1610233810817,34.00959,1284.2,1284.1,2.2946]
[1610233813221,4.00959,1284.2,1284.1,2.2946]
[1610233813423,30.0,1284.7,1284.1,2.2946]
[1610233814021,30.0,1284.7,1284.4,4.00959]
[1610233814221,30.0,1284.7,1284.3,2.0148]
[1610233815326,30.0,1284.7,1283.6,63.7954]
[1610233815927,4.00959,1283.8,1283.6,63.7954]
[1610233816129,4.00959,1283.8,1283.6,60.3904]
[1610233816330,34.00959,1283.8,1283.6,60.3904]
[1610233817231,4.00959,1283.8,1283.6,60.3904]
[1610233817432,30.0,1284.6,1283.6,60.3904]
[1610233818035,4.00959,1284.1,1283.6,60.3904]
[1610233818233,30.0,1284.0,1283.6,60.3904]
[1610233818734,2.5466,1284.7,1283.6,60.3904]
[1610233819533,5.6618,1284.8,1283.6,60.3904]
[1610233819734,35.6618,1284.8,1283.6,60.3904]
[1610233819933,39.67139,1284.8,1284.0,4.00959]
[1610233820132,39.67139,1284.8,1284.1,6.4704]
[1610233820333,39.67139,1284.8,1284.0,13.30629]
[1610233820833,9.67139,1284.8,1284.0,13.30629]
[1610233821233,39.67139,1284.8,1284.0,13.30629]
[1610233822034,35.6618,1284.8,1284.3,4.00959]
[1610233822235,35.6618,1284.8,1284.3,1.6236]
[1610233826041,4.00959,1284.5,1284.3,1.6236]
[1610233826243,34.00959,1284.5,1284.3,1.6236]
[1610233827342,34.00959,1284.5,1284.0,9.2967]
[1610233828443,4.00959,1284.5,1284.0,9.2967]
[1610233829346,30.0,1284.4,1284.0,2.1925]
[1610233829744,30.0,1284.4,1283.9,46.9256]
[1610233830147,30.0,1284.7,1283.9,46.9256]
[1610233830346,30.0,1284.7,1283.9,48.5087]
[1610233832052,4.00959,1284.5,1284.3,4.00959]
[1610233832651,30.0,1284.7,1284.3,4.00959]
[1610233833051,30.0,1284.7,1284.3,6.37209]
[1610233833955,4.00959,1284.4,1284.3,6.37209]
[1610233834155,34.00959,1284.4,1284.3,6.37209]
[1610233836563,34.00959,1284.4,1284.3,2.3625]
[1610233837969,34.00959,1284.4,1283.9,52.51829]
[1610233838567,4.00959,1284.4,1283.9,52.51829]
[1610233838766,30.0,1284.7,1283.9,52.51829]
[1610233839070,30.0,1284.7,1284.3,49.4786]
[1610233839467,30.0,1284.7,1284.3,51.4114]
[1610233840868,30.0,1284.6,1284.3,51.4114]
[1610233841368,30.0,1284.6,1284.3,1.9328]
[1610233841769,30.0,1284.5,1284.3,1.9328]
[1610233841968,30.0,1284.5,1284.4,4.00959]
[1610233842869,30.0,1285.2,1284.4,4.00959]
[1610233844071,4.00959,1284.7,1284.3,1.9328]
[1610233844272,30.0,1284.6,1284.3,1.9328]
[1610233844671,30.0,1284.6,1284.2,4.00959]
[1610233845975,30.0,1284.6,1284.4,4.00959]
[1610233846175,30.0,1284.6,1284.4,6.09679]
[1610233846876,4.00959,1284.7,1284.4,6.09679]
[1610233847976,30.0,1285.2,1284.6,4.00959]
[1610233848576,30.0,1285.1,1284.6,4.00959]
[1610233849479,30.0,1285.4,1284.6,4.00959]
[1610233850079,4.00959,1284.9,1284.8,4.00959]
[1610233850279,34.00959,1284.9,1284.8,4.00959]
[1610233852082,34.00959,1284.9,1284.5,4.00959]
[1610233852481,30.0,1284.9,1284.5,4.00959]
[1610233853181,30.0,1285.4,1284.5,4.00959]
[1610233853983,4.00959,1284.8,1284.4,2.0872]
[1610233854183,30.0,1284.7,1284.3,4.00959]
[1610233855083,30.0,1284.7,1284.2,58.6542]
[1610233855990,4.00959,1284.3,1284.2,58.6542]
[1610233856190,34.00959,1284.3,1284.2,58.6542]
[1610233857794,34.00959,1284.3,1283.9,1.5831]
[1610233857993,4.00959,1284.0,1283.8,56.60039]
[1610233858193,30.0,1283.9,1283.8,56.60039]
[1610233858392,30.0,1283.9,1283.8,52.5908]
[1610233863703,30.0,1283.9,1283.8,55.1763]
[1610233864104,34.00959,1283.9,1283.8,55.1763]
[1610233865904,34.00959,1283.9,1283.8,52.5908]
[1610233867305,34.00959,1283.9,1283.1,47.5456]
[1610233867506,34.00959,1283.9,1283.1,45.9722]
[1610233868108,4.00959,1283.2,1283.1,45.9722]
[1610233868305,36.02659,1283.2,1283.1,45.9722]
[1610233876617,36.02659,1283.2,1282.6,1.9538]
[1610233878118,4.00959,1282.7,1282.6,1.9538]
[1610233878321,34.00959,1282.7,1282.6,1.9538]
[1610233878518,34.00959,1282.7,1282.5,61.6035]
[1610233882121,34.00959,1282.7,1282.6,4.00959]
[1610233882324,34.00959,1282.7,1282.6,6.34989]
[1610233882523,34.00959,1282.7,1282.6,2.3403]
[1610233886027,34.00959,1282.7,1282.2,2.4012]
[1610233886227,4.00959,1282.3,1281.7,2.1146]
[1610233886425,30.0,1282.2,1281.7,2.1146]
[1610233887426,30.0,1282.2,1281.8,1.19569461]
[1610233888228,4.00959,1281.9,1281.8,1.19569461]
[1610233888427,36.20109,1281.9,1281.8,1.19569461]
[1610233888928,36.20109,1281.9,1280.7,1.19589771]
[1610233889131,36.20109,1281.9,1281.1,63.0329]
[1610233890231,4.00959,1281.6,1281.2,1.19576298]
[1610233890432,30.0,1281.5,1281.2,1.19576298]
[1610233892232,4.00959,1281.3,1281.2,1.19576298]
[1610233892432,34.00959,1281.3,1281.2,1.19576298]
[1610233893133,30.0,1281.3,1281.2,1.19576298]
[1610233893332,30.0,1282.3,1281.2,1.19576298]
[1610233893533,30.0,1282.3,1281.2,3.31346298]
[1610233894136,4.00959,1281.3,1281.2,3.31346298]
[1610233894333,34.00959,1281.3,1281.2,3.31346298]
[1610233894734,34.00959,1281.3,1281.2,2.1177]
[1610233895935,34.00959,1281.3,1281.2,3.31356092]
[1610233899642,34.00959,1281.3,1281.2,2.1177]
[1610233899843,34.00959,1281.3,1281.2,1.6735]
[1610233900244,34.00959,1281.3,1281.2,2.86937301]
[1610233905953,34.00959,1281.3,1281.2,1.19587301]
[1610233906152,35.89099,1281.3,1281.2,1.19587301]
[1610233906953,35.89099,1281.3,1280.2,2.212]
[1610233908354,4.00959,1280.3,1280.2,2.212]
[1610233908553,34.00959,1280.3,1280.2,2.212]
[1610233909156,4.00959,1280.3,1280.2,2.212]
[1610233909756,4.00959,1280.3,1280.2,3.40896193]
[1610233909954,34.00959,1280.3,1280.2,3.40896193]
[1610233910756,4.00959,1280.3,1280.2,3.40896193]
[1610233912664,34.00959,1280.3,1280.2,3.40896193]
[1610233912863,4.00959,1280.3,1280.2,3.40896193]
[1610233913464,4.00959,1280.3,1280.2,2.212]
[1610233913664,4.00959,1280.3,1279.9,2.4118]
[1610233913864,4.00959,1280.3,1279.6,5.72659]
[1610233914065,4.00959,1280.3,1280.2,1.19632581]
[1610233914264,4.00959,1280.3,1280.2,3.72422581]
[1610233915966,34.00959,1280.3,1280.2,3.72422581]
[1610233917469,34.00959,1280.3,1280.2,1.19632581]
[1610233918269,34.00959,1280.3,1279.8,1.19714371]
[1610233920271,4.00959,1279.9,1279.8,1.19714371]
[1610233921074,3.05223965,1279.9,1279.7,1.19668794]
[1610233921273,33.05223965,1279.9,1279.7,1.19668794]
[1610233921674,33.05223965,1279.9,1279.6,1.717]
[1610233921875,3.05223965,1279.9,1279.0,55.60559]
[1610233922374,3.05223965,1279.9,1279.5,4.00959]
[1610233922576,3.05223965,1279.9,1279.5,6.34569]
[1610233924675,3.05223965,1279.9,1279.6,1.19654827]
[1610233925077,30.0,1279.8,1279.6,1.19654827]
[1610233926276,4.00959,1279.7,1279.6,1.19654827]
[1610233926478,34.00959,1279.7,1279.6,1.19654827]
[1610233927278,33.05229362,1279.7,1279.6,1.19654827]
[1610233927680,33.05229362,1279.7,1279.5,6.34569]
[1610233928478,30.0,1280.6,1279.5,6.34569]
[1610233929482,30.0,1280.5,1279.5,6.34569]
[1610233930382,4.00959,1280.1,1279.5,6.34569]
[1610233931286,30.0,1280.4,1279.5,6.34569]
[1610233931685,5.6532,1281.0,1279.5,6.34569]
[1610233931885,30.0,1280.9,1279.5,6.34569]
[1610233932488,4.00959,1280.4,1280.2,4.00959]
[1610233933688,34.00959,1280.4,1280.2,4.00959]
[1610233934689,34.00959,1280.4,1279.5,2.3361]
[1610233934890,34.00959,1280.4,1279.1,56.9989]
[1610233936390,34.00959,1280.4,1280.0,4.00959]
[1610233936590,34.00959,1280.4,1280.0,2.0108]
[1610233938390,4.00959,1280.2,1280.0,2.0108]
[1610233938591,30.0,1280.1,1280.0,2.0108]
[1610233941593,30.0,1280.1,1279.1,56.9989]
[1610233942396,30.0,1280.1,1279.6,4.00959]
[1610233942594,30.0,1280.1,1279.6,5.94739]
[1610233943295,30.0,1280.1,1279.6,1.9378]
[1610233944400,4.00959,1279.7,1279.6,1.9378]
[1610233944602,34.00959,1279.7,1279.6,1.9378]
[1610233947012,34.00959,1279.7,1279.1,62.9505]
[1610233948012,36.22189,1279.7,1279.1,62.9505]
[1610233948511,4.00959,1279.2,1279.1,62.9505]
[1610233948711,36.13459,1279.2,1279.1,62.9505]
[1610233949212,36.13459,1279.2,1277.1,4.31667904]
[1610233949411,36.13459,1279.2,1277.0,4.31697155]
[1610233949611,6.1179,1279.1,1277.0,4.31697155]
[1610233949813,6.1179,1279.1,1275.9,10.216]
[1610233949814,30.0,1279.0,1276.7,4.31773747]
[1610233950011,30.0,1279.0,1275.9,15.01348608]
[1610233950012,30.0,1279.0,1276.2,4.3186561]
[1610233950512,30.0,1279.0,1276.3,4.00959]
[1610233950714,30.0,1279.0,1276.3,6.27149]
[1610233951115,35.9793,1278.9,1276.3,6.27149]
[1610233951314,30.0,1278.9,1276.4,4.3184697]
[1610233951514,32.3705,1278.9,1276.4,4.3184697]
[1610233952013,32.3705,1278.9,1276.3,6.27149]
[1610233952014,6.1996,1278.8,1276.5,4.31797566]
[1610233952214,30.0,1278.7,1276.5,4.31797566]
[1610233952414,30.0,1278.7,1276.7,4.31779077]
[1610233952614,4.00959,1278.1,1277.5,4.00959]
[1610233952814,34.00959,1278.1,1277.5,4.00959]
[1610233954017,4.00959,1278.1,1277.5,4.00959]
[1610233955019,34.00959,1278.1,1277.5,4.00959]
[1610233955418,30.0,1278.1,1277.5,4.00959]
[1610233956520,4.00959,1278.0,1277.7,4.00959]
[1610233956724,30.0,1278.0,1276.7,10.17053253]
[1610233956920,30.0,1278.0,1276.7,5.8532]
[1610233957121,30.0,1278.0,1276.7,2.4482]
[1610233957722,30.0,1277.9,1276.5,57.8915]
[1610233958527,4.00959,1276.8,1276.5,57.8915]
[1610233958721,34.00959,1276.8,1276.5,57.8915]
[1610233959222,30.0,1276.8,1276.5,57.8915]
[1610233959623,1.9562,1278.1,1276.5,57.8915]
[1610233959822,6.0046,1278.0,1276.5,57.8915]
[1610233960022,30.0,1277.9,1276.5,57.8915]
[1610233960523,4.00959,1277.1,1276.5,57.8915]
[1610233960725,30.0,1277.0,1276.5,57.8915]
[1610233961427,30.0,1277.0,1276.3,2.2619]
[1610233961628,30.0,1277.0,1275.5,4.32148557]
[1610233961927,30.0,1277.0,1275.4,4.32192028]
[1610233962329,30.0,1277.0,1275.3,4.32203656]
[1610233962528,4.00959,1275.8,1275.4,4.00959]
[1610233962729,30.0,1275.7,1275.4,4.00959]
[1610233963128,30.0,1275.7,1275.1,4.32257715]
[1610233963329,30.0,1275.7,1275.0,4.32308349]
[1610233963530,30.0,1275.7,1274.9,3.405]
[1610233963731,30.0,1275.7,1274.8,4.32375326]
[1610233963932,4.00959,1275.8,1274.7,4.32391835]
[1610233964131,4.00959,1275.8,1274.7,6.88771835]
[1610233964330,30.0,1276.7,1274.7,6.88771835]
[1610233964530,4.00959,1276.1,1274.9,4.00959]
[1610233965131,41.7985,1277.6,1274.9,4.00959]
[1610233965331,41.7985,1277.6,1274.9,7.41459]
[1610233966534,4.00959,1276.3,1275.6,4.00959]
[1610233967336,34.00959,1276.3,1275.6,4.00959]
[1610233968138,30.0,1276.3,1275.6,4.00959]
[1610233968339,30.0,1277.5,1275.6,4.00959]
[1610233968537,4.00959,1276.5,1275.6,4.00959]
[1610233968739,30.0,1277.5,1275.6,4.00959]
[1610233968937,30.0,1277.5,1275.6,5.93379]
[1610233970039,30.0,1278.2,1275.6,5.93379]
[1610233970241,36.2738,1278.2,1275.6,5.93379]
[1610233970440,30.0,1278.2,1275.6,5.93379]
[1610233970640,30.0,1278.2,1277.2,4.00959]
[1610233970641,4.00959,1277.6,1277.2,4.00959]
[1610233972644,4.00959,1277.6,1277.5,4.00959]
[1610233972844,4.00959,1277.6,1277.5,6.49989]
[1610233973344,4.00959,1277.6,1277.5,2.4903]
[1610233973544,34.00959,1277.6,1277.5,2.4903]
[1610233973944,34.00959,1277.6,1277.2,2.4737]
[1610233974751,4.00959,1277.6,1277.2,2.4737]
[1610233976351,1.9109,1278.5,1277.2,2.4737]
[1610233976554,4.00959,1278.1,1277.4,4.00959]
[1610233977754,4.00959,1278.1,1277.2,2.4737]
[1610233978254,34.00959,1278.1,1277.2,2.4737]
[1610233978655,34.00959,1278.1,1277.4,4.00959]
[1610233978857,34.00959,1278.1,1277.2,2.4737]
[1610233979056,34.00959,1278.1,1277.0,51.8346]
[1610233980660,30.0,1278.1,1277.0,51.8346]
[1610233980859,30.0,1278.0,1277.0,51.8346]
[1610233981761,30.0,1277.9,1277.0,51.8346]
[1610233982568,4.00959,1277.6,1277.2,4.00959]
[1610233982764,30.0,1278.7,1277.2,4.00959]
[1610233983166,30.0,1278.7,1277.2,6.08599]
[1610233983766,30.0,1278.6,1277.2,2.0764]
[1610233984867,30.0,1278.5,1277.2,2.0764]
[1610233985770,30.0,1278.4,1277.2,2.0764]
[1610233986572,4.00959,1277.3,1277.2,2.0764]
[1610233986772,34.00959,1277.3,1277.2,2.0764]
[1610233987673,35.74559,1277.3,1277.0,51.8346]
[1610233988673,4.00959,1277.1,1277.0,51.8346]
[1610233988876,34.00959,1277.1,1277.0,51.8346]
[1610233989675,34.00959,1277.1,1275.8,44.0278]
[1610233990577,4.00959,1275.9,1275.8,44.0278]
[1610233990777,34.00959,1275.9,1275.8,44.0278]
[1610233992578,30.0,1275.9,1275.8,48.03739]
[1610233992778,4.00959,1276.1,1275.8,48.03739]
[1610233993578,4.00959,1276.1,1275.8,44.0278]
[1610233994080,30.0,1276.0,1275.8,44.0278]
[1610233994680,4.00959,1275.9,1275.8,44.0278]
[1610233994880,34.00959,1275.9,1275.8,44.0278]
[1610233996284,34.00959,1275.9,1275.6,1.9242]
[1610233996484,34.00959,1275.9,1275.1,4.00959]
[1610233996685,4.00959,1275.3,1275.0,3.405]
[1610233996884,4.00959,1275.3,1274.9,4.00959]
[1610233997084,34.00959,1275.3,1274.9,4.00959]
[1610233997486,34.00959,1275.3,1274.7,9.3748]
[1610233997889,34.00959,1275.3,1274.7,2.5638]
[1610233998088,34.00959,1275.3,1274.1,4.32726388]
[1610233998288,34.00959,1275.3,1274.0,4.32727235]
[1610233998588,16.00959,1275.3,1274.0,4.32727235]
[1610233998788,42.0,1275.3,1274.4,4.00959]
[1610233999088,42.0,1275.3,1274.4,6.04989]
[1610233999589,42.0,1275.3,1274.4,2.0403]
[1610234000791,4.00959,1274.5,1274.4,2.0403]
[1610234000991,34.00959,1274.5,1274.4,2.0403]
[1610234001193,4.00959,1274.5,1274.4,2.0403]
[1610234001396,34.00959,1274.5,1274.0,45.6773]
[1610234002793,4.00959,1274.1,1274.0,45.6773]
[1610234002994,34.00959,1274.1,1271.4,4.33574086]
[1610234003192,36.42109,1274.1,1271.4,4.33574086]
[1610234003393,36.42109,1274.1,1271.0,4.33635532]
[1610234003394,6.267,1274.0,1271.0,4.33635532]
[1610234003592,30.0,1273.9,1271.0,4.33635532]
[1610234003793,35.8301,1273.9,1270.7,4.33704078]
[1610234003993,35.8301,1273.9,1270.6,4.33742258]
[1610234004393,35.8301,1273.9,1269.9,4.3378033]
[1610234004794,4.00959,1272.4,1270.5,4.33761659]
[1610234005195,4.00959,1272.4,1270.7,4.33726616]
[1610234005396,4.00959,1272.4,1270.7,6.43456616]
[1610234005996,1.5642,1272.4,1270.7,6.43456616]
[1610234006196,1.5642,1272.4,1270.9,4.33706179]
[1610234006396,1.5642,1272.4,1271.0,4.33651007]
[1610234006696,1.5642,1272.4,1272.3,4.00959]
[1610234006897,1.5642,1272.4,1272.3,5.81209]
[1610234007598,1.5642,1272.4,1272.3,1.8025]
[1610234008399,44.6953,1274.5,1272.3,1.8025]
[1610234008598,5.865,1274.4,1272.3,1.8025]
[1610234008801,4.00959,1273.2,1272.3,1.8025]
[1610234008999,34.00959,1273.2,1272.3,1.8025]
[1610234009601,35.59419,1273.2,1272.3,1.8025]
[1610234010799,4.00959,1272.4,1272.3,1.8025]
[1610234011002,34.00959,1272.4,1272.3,1.8025]
[1610234012002,5.59139,1272.4,1271.0,2.3557]
[1610234012202,1.5818,1272.4,1271.0,4.33647154]
[1610234012601,1.5818,1272.4,1270.7,5.5023]
[1610234012602,1.5818,1272.4,1271.1,4.33595264]
[1610234012802,4.00959,1272.8,1272.3,4.00959]
[1610234013003,4.00959,1272.8,1272.3,5.71829]
[1610234013202,30.0,1273.8,1272.3,5.71829]
[1610234013404,36.1092,1273.8,1272.3,5.71829]
[1610234014003,32.1862,1274.3,1272.3,5.71829]
[1610234014404,32.1862,1274.3,1272.3,9.12329]
[1610234014604,30.0,1274.3,1272.3,9.12329]
[1610234014804,4.00959,1273.4,1273.2,4.00959]
[1610234015403,4.00959,1273.4,1272.3,1.7087]
[1610234016406,34.00959,1273.4,1272.3,1.7087]
[1610234016806,4.00959,1272.4,1271.3,8.34529286]
[1610234017006,34.00959,1272.4,1271.3,8.34529286]
[1610234017207,30.0,1272.4,1271.3,8.34529286]
[1610234017410,30.0,1272.4,1271.3,4.00959]
[1610234017808,1.5695,1272.4,1271.9,47.9882]
[1610234018008,1.5695,1272.4,1271.9,2.0131]
[1610234018610,30.0,1273.0,1271.9,2.0131]
[1610234018809,4.00959,1272.1,1271.9,2.0131]